[Event "DFMM-LV 2023"]
[Site "Braunfels"]
[Date "2023.06.09"]
[Round "2.16"]
[White "Sokyrko, Sofiia"]
[Black "Freter, Anke"]
[Result "0-1"]
[Annotator "NA RC COMBH"]
[ECO "B21"]
[WhiteElo "1503"]
[BlackElo "1855"]
[PlyCount "96"]
[EventDate "2023.06.09"]
[EventType "team-tourn"]
[EventCountry "GER"]
[SourceTitle "playchess.com"]
[Source "ChessBase"]
[SourceQuality "1"]
[TimeControl "40/5400+30:1800+30"]

1. e4 {[%emt 0:00:05]} c5 {[%emt 0:00:06]} 2. d4 {[%emt 0:00:07]} cxd4 {[%emt 0:00:15]} 3. c3 {[%emt 0:00:08]} dxc3 {[%emt 0:00:12]} 4. Nxc3 {[%emt 0:00:06]} Nc6 {[%emt 0:00:26]} 5. Bc4 {[%emt 0:00:13]} e6 {[%emt 0:00:40]} 6. Nf3 {[%emt 0:00:15]} d6 {[%emt 0:01:04]} 7. O-O {[%emt 0:01:02]} a6 {[%emt 0:00:27]} 8. Qe2 {[%emt 0:00:38]} Be7 {[%emt 0:01:28]} 9. Be3 {[%emt 0:00:57]} b5 {[%emt 0:02:31]} 10. Bb3 {[%emt 0:00:17]} Bd7 {[%emt 0:01:39]} 11. Rfd1 {[%emt 0:01:48]} Rc8 {[%emt 0:16:16]} 12. Rac1 {[%emt 0:02:24]} Nf6 {[%emt 0:07:12]} 13. Nd2 {[%emt 0:08:38]} O-O {[%emt 0:04:38]} 14. f4 {[%emt 0:08:58]} Qc7 {[%emt 0:06:20]} 15. Nf3 {[%emt 0:08:51]} Qb8 {[%emt 0:13:22]} 16. Bf2 {[%emt 0:05:30]} Na5 {[%emt 0:07:46]} 17. Bc2 {[%emt 0:01:31]} Ng4 {[%emt 0:04:50]} 18. Bg3 {[%emt 0:03:43]} Qb6+ {[%emt 0:04:29]} 19. Kh1 {[%emt 0:01:34]} Qe3 {[%emt 0:03:28]} 20. Qf1 {[%emt 0:01:25]} Qb6 {[%emt 0:02:27]} 21. e5 {[%emt 0:00:54]} d5 {[%emt 0:01:27]} 22. Qd3 {[%emt 0:01:17]} g6 {[%emt 0:00:31]} 23. Rf1 {[%emt 0:01:00]} Nc4 {[%emt 0:02:28]} 24. Nd1 {[%emt 0:01:59]} Bc5 {[%emt 0:01:37]} 25. Re1 {[%emt 0:03:12]} Rc7 {[%emt 0:02:04]} 26. h3 {[%emt 0:00:28]} Nge3 {[%emt 0:01:17]} 27. Nxe3 {[%emt 0:00:06]} Bxe3 {[%emt 0:00:20]} 28. Rb1 {[%emt 0:00:49]} d4 {[%emt 0:02:52]} 29. h4 {[%emt 0:03:46]} Bc6 {[%emt 0:02:20]} 30. Bd1 {[%emt 0:00:44]} Qb7 {[%emt 0:01:26]} 31. Qf1 {[%emt 0:06:56]} Be4 {[%emt 0:00:57]} 32. Ra1 {[%emt 0:01:00]} Nxb2 {[%emt 0:01:00]} 33. Ng5 {[%emt 0:02:31]} Nxd1 {[%emt 0:01:26]} 34. Nxe4 {[%emt 0:00:48]} Qxe4 {[%emt 0:00:02]} 35. Raxd1 {[%emt 0:00:14]} Rc2 {[%emt 0:00:29]} 36. Re2 {[%emt 0:01:09]} Rfc8 {[%emt 0:00:10]} 37. Rde1 {[%emt 0:01:13]} Rxe2 {[%emt 0:01:03]} 38. Qxe2 {[%emt 0:02:26]} Rc2 {[%emt 0:00:27]} 39. Qf1 {[%emt 0:00:37]} Rxa2 {[%emt 0:00:45]} 40. Re2 {[%emt 0:01:22]} Qd3 {[%emt 0:00:58]} 41. Re1 {[%emt 0:30:30]} Qxf1+ {[%emt 0:30:22]} 42. Rxf1 {[%emt 0:00:06]} Rc2 {[%emt 0:00:16]} 43. Ra1 {[%emt 0:00:38]} Rc1+ {[%emt 0:00:12]} 44. Rxc1 {[%emt 0:00:06]} Bxc1 {[%emt 0:00:05]} 45. Kg1 {[%emt 0:00:18]} d3 {[%emt 0:00:22]} 46. Kf2 {[%emt 0:00:15]} Bd2 {[%emt 0:00:30]} 47. Kf1 {[%emt 0:01:42]} b4 {[%emt 0:00:23]} 48. Be1 {[%emt 0:00:23]} Bc3 {[%emt 0:00:36]} 0-1

[Event "DFMM-LV 2023"]
[Site "Braunfels"]
[Date "2023.06.09"]
[Round "2.17"]
[White "Rieseler, Caroline"]
[Black "Rogule, Laura"]
[Result "0-1"]
[Annotator "TA"]
[ECO "B90"]
[WhiteElo "2126"]
[BlackElo "2218"]
[PlyCount "180"]
[EventDate "2023.06.09"]
[EventType "team-tourn"]
[EventCountry "GER"]
[SourceTitle "playchess.com"]
[Source "ChessBase"]
[SourceQuality "1"]
[TimeControl "40/5400+30:1800+30"]

{[%evp 16,180,18,7,43,-21,-14,-19,-20,-21,-16,-23,29,24,40,0,0,0,50,46,26,30,49,51,55,0,-5,-26,-27,-66,-66,-52,-67,-81,-62,-147,-142,-211,-205,-212,-202,-223,-223,-223,-223,-230,-230,-230,-230,-222,-55,-225,-217,-187,-187,-383,-225,-225,-258,-1091,-1091,-1091,-1085,-1081,-1073,-581,-473,-1083,-864,-1054,-543,-1093,-1093,-1065,-164,-164,-161,-999,-818,-720,-422,-2435,-2602,-1274,-2090,-2431,-2317,-2329,-2075,-1137,-322,-154,0,0,0,-4785,-4582,-4318,-2649,-2649,-2099,-2099,-1768,-1459,-1356,-1371,-1365,-29956,-29960,-29955,-29955,-12810,-12791,-29957,-29953,-29961,-1390,-1091,-1083,-29950,-29964,-29945,-6628,-29961,-29962,-29965,-2287,-29969,-119,-29968,-29968,-12849,-4559,-8279,-6511,-2082,-1996,-1656,-1602,-29953,-4614,-29963,-1144,-29977,-29978,-29978,-29979,-29979,-41,-29980,-29981,-29981,-29982,-29982,-29983,-29984,-29985,-29985,-29986,-29986,-29983,-29987,-29988,-29995,-29996,-29996,-29997]} 1. e4 {[%emt 0:00:03]} c5 {[%emt 0:00:07]} 2. Nf3 {[%emt 0:00:12]} d6 {[%emt 0:00:15]} 3. d4 {[%emt 0:00:19]} cxd4 {[%emt 0:00:06]} 4. Nxd4 {[%emt 0:00:04]} Nf6 {[%emt 0:00:11]} 5. Nc3 {[%emt 0:00:07]} a6 {[%emt 0:00:16]} 6. Be3 {[%emt 0:01:32]} e5 {[%emt 0:00:15]} 7. Nf3 {[%emt 0:00:07]} Be7 {[%emt 0:04:40]} 8. Bc4 {[%emt 0:02:22]} O-O {[%emt 0:04:04]} 9. O-O {[%emt 0:00:08]} Nbd7 {[%emt 0:06:51] 9...Nc6 is the modern continuation. B90: Sicilian Najdorf: Unusual White 6th moves, 6 Be3 Ng4 and 6 Be3 e5.} 10. Qe2 {[%emt 0:13:27]} (10. a4 $14) 10... b5 $11 {[%emt 0:03:48]} 11. Bd5 {[%emt 0:00:37]} Nxd5 {[%emt 0:02:42] The position is equal.} 12. Nxd5 {[%emt 0:00:30]} Bb7 {[%emt 0:01:04]} 13. Rfd1 {[%emt 0:01:00]} Rc8 {[%emt 0:05:48]} ({Better is} 13... Bxd5 14. Rxd5 Qc7) 14. a4 {[%emt 0:06:20] [#]} Bxd5 $146 {[%emt 0:28:17]} ({Predecessor:} 14... b4 15. a5 Bxd5 16. Rxd5 Qc7 17. Ne1 Qc4 18. Qxc4 Rxc4 19. f3 f5 20. exf5 Rxf5 {0-1 Hooker,D-Hove,J (2240) USA Masters Cup 1996}) 15. Rxd5 {[%emt 0:15:04]} Nf6 {[%emt 0:04:25]} 16. Rdd1 {[%emt 0:00:31]} Nxe4 {[%emt 0:04:09]} (16... Qa5 $11) 17. axb5 $14 {[%emt 0:03:15]} axb5 {[%emt 0:00:13]} 18. Nxe5 {[%emt 0:01:23]} Bf6 {[%emt 0:02:51][%cal Be7f6,Bf6d4,Bd4e5,Be5b2,Bb2a3,Ba3c5][%mdl 32]} 19. Nd3 {[%emt 0:00:48]} Re8 {[%emt 0:07:53]} 20. f3 {[%emt 0:05:26]} (20. c3 $14) 20... Ng3 $11 {[%emt 0:15:47]} 21. hxg3 {[%emt 0:16:39]} (21. Qd2 {simplifies} Nf5 22. Bf2 Nd4 23. Nb4) 21... Bd4 {[%emt 0:00:30]} 22. Ne5 {[%emt 0:08:01]} Bxe5 {[%emt 0:02:12]} 23. Qf2 {[%emt 0:03:44]} Bxb2 {[%emt 0:03:16]} 24. Rab1 {[%emt 0:00:50]} Qf6 {[%emt 0:00:23]} 25. Bf4 {[%emt 0:11:03]} ({Much weaker is} 25. c4 bxc4 26. Qxb2 Rxe3 27. Qxf6 gxf6 28. Rxd6 c3 $17) (25. Rd5 $15) 25... Ba3 $1 $36 {[%emt 0:00:55][%mdl 2048] Keeping White busy. Black is more active.} 26. Qd2 {[%emt 0:05:34]} (26. Rd3 $17 {was called for.} Bc5 27. Be3) 26... Qg6 $1 $19 {[%emt 0:00:56]} 27. g4 {[%emt 0:01:11]} Rxc2 {[%emt 0:00:19]} 28. Qd3 {[%emt 0:01:17]} Bc5+ {[%emt 0:00:42]} 29. Kh1 {[%emt 0:00:08]} Qxd3 {[%emt 0:00:45]} 30. Rxd3 {[%emt 0:00:07]} b4 {[%emt 0:00:36]} 31. Bxd6 {[%emt 0:00:55]} Rd8 {[%emt 0:00:56]} 32. Rbd1 {[%emt 0:00:40] [#]} h5 $2 {[%emt 0:00:21]} 33. Bxc5 $2 {[%emt 0:00:39]} (33. gxh5 $15 Rc3 34. Rd5) 33... Rxd3 {[%emt 0:00:06]} 34. Rxd3 {[%emt 0:00:13]} Rxc5 $15 {[%emt 0:00:06][%mdl 4096] Endgame KR-KR} 35. Rd8+ {[%emt 0:01:34]} Kh7 {[%emt 0:00:04] ...hxg4 is the strong threat.} 36. Rb8 {[%emt 0:00:05]} hxg4 {[%emt 0:01:03][%cal Bh5g4,Bg4g3][%mdl 32]} 37. Rxb4 $2 {[%emt 0:00:18]} (37. fxg4 Rc4 38. Rb7) 37... g3 $1 $19 {[%emt 0:00:26][%cal Rc5c1]} 38. Rb1 {[%emt 0:00:05] Wards off Rc1+} Kg6 {[%emt 0:00:21]} 39. Kg1 {[%emt 0:00:01]} Kg5 {[%emt 0:00:20]} 40. Kf1 {[%emt 0:00:05]} f5 {[%emt 0:01:02] White must now prevent ...Rc2.} 41. Ra1 {[%emt 0:33:32]} (41. Rb2 $142 Ra5 42. Ke1) 41... Kf4 {[%emt 0:30:51] And now ...Ke3 would win.} 42. Re1 {[%emt 0:00:00]} Rc3 {[%emt 0:00:00]} 43. Kg1 {[%emt 0:00:00]} Re3 {[%emt 0:00:00][%cal Re3e1]} 44. Ra1 {[%emt 0:00:00]} Ke5 $2 {[%emt 0:00:00]} (44... Rb3 {aiming for ...Ke3.} 45. Re1 Rb2) 45. Kf1 {[%emt 0:00:00]} Rc3 {[%emt 0:00:00]} 46. Rd1 $2 {[%emt 0:00:00]} (46. Ra2) 46... Rc2 {[%emt 0:00:00] ...Rf2+ would be deadly.} 47. Kg1 {[%emt 0:00:00]} Rf2 {[%emt 0:00:00]} 48. Kh1 {[%emt 0:00:00]} (48. Rd3 $142 Ra2 49. Rd1) 48... Re2 {[%emt 0:00:00]} 49. Kg1 {[%emt 0:00:00]} Kf4 {[%emt 0:00:00]} 50. Kf1 {[%emt 0:00:00]} Ke3 {[%emt 0:00:00]} 51. Rd7 {[%emt 0:00:00]} Rf2+ {[%emt 0:00:00]} 52. Kg1 {[%emt 0:00:00]} Rc2 $2 {[%emt 0:00:00]} (52... g5 53. Re7+ Kd2) 53. Re7+ {[%emt 0:00:00]} Kd4 $2 {[%emt 0:00:00]} (53... Kf4 $1 $17 {( -> ...Rc1+)} 54. Re1 Kg5) 54. Rd7+ $1 $11 {[%emt 0:00:00]} Ke5 {[%emt 0:00:07]} 55. Re7+ $2 {[%emt 0:00:00][%mdl 8192] White is now going downhill.} (55. Rd1 $11) 55... Kd6 $19 {[%emt 0:00:09]} 56. Re1 {[%emt 0:00:00] Dodges Rc1} g6 {[%emt 0:02:08]} 57. Kf1 {[%emt 0:00:00]} Rf2+ {[%emt 0:02:15]} 58. Kg1 {[%emt 0:00:00]} Rd2 {[%emt 0:00:08] Threatens to win with ...f4.} 59. Kf1 {[%emt 0:00:00]} Kd5 {[%emt 0:00:21]} 60. Ra1 {[%emt 0:03:13]} Kd4 {[%emt 0:01:52] Strongly threatening ...g5.} 61. Ra4+ {[%emt 0:03:45] [#]} Ke3 $1 {[%emt 0:01:29][%cal Rd2d1]} 62. Ra3+ {[%emt 0:01:22] [#]} Rd3 $1 {[%emt 0:00:27]} 63. Ra1 {[%emt 0:00:08]} g5 {[%emt 0:00:22]} 64. Rb1 {[%emt 0:00:47]} Rd2 {[%emt 0:01:52]} 65. Ra1 {[%emt 0:00:39]} Kd3 {[%emt 0:00:59]} (65... Rf2+ $142 66. Kg1 Rc2 67. Kf1 Kd2 68. Re1 Rc1 69. Rxc1 Kxc1 70. Ke2 Kc2 71. Ke1 Kd3 72. Kd1 f4 73. Ke1 Ke3 74. Kf1 Kd2 75. Kg1 Ke2 76. Kh1 g4 77. Kg1 gxf3 78. gxf3 Kxf3 79. Kh1 Ke3 80. Kg2 f3+ 81. Kxg3 f2 82. Kg2 Ke2 83. Kh3 f1=Q+ 84. Kg4 Qf6 85. Kh5 Qg7 86. Kh4 Ke3 87. Kh5 Kf4 88. Kh4 Qh8#) 66. Ra3+ {[%emt 0:01:02]} Kc4 {[%emt 0:00:16]} 67. Ra1 {[%emt 0:00:50]} Rf2+ {[%emt 0:00:16]} 68. Kg1 {[%emt 0:00:20]} Rb2 {[%emt 0:00:51]} 69. Kf1 {[%emt 0:00:09]} f4 {[%emt 0:00:17]} 70. Rd1 {[%emt 0:02:35]} Kc3 {[%emt 0:00:27]} (70... Ra2 $142 71. Kg1 Kc3 72. Re1 Kd3 73. Kf1 Rf2+ 74. Kg1 Re2 75. Rb1 Rc2 76. Re1 Kd2 77. Kf1 Rc1 78. Rxc1 Kxc1 79. Ke1 Kc2 80. Ke2 Kc3 81. Kd1 Kd3 82. Ke1 Ke3 83. Kd1 g4 84. Ke1 gxf3 85. Kf1 fxg2+ 86. Kg1 Ke4 87. Kxg2 Ke3 88. Kh3 f3 89. Kxg3 f2 90. Kg2 Ke2 91. Kh3 f1=Q+ 92. Kg4 Qf6 93. Kh5 Qg7 94. Kh4 Ke3 95. Kh3 Kf3 96. Kh4 Qh6#) 71. Re1 {[%emt 0:00:18]} Rf2+ {[%emt 0:00:41]} 72. Kg1 {[%emt 0:00:02]} Rd2 {[%emt 0:00:31]} 73. Kf1 {[%emt 0:00:23]} Kc2 {[%emt 0:00:19]} (73... Rc2 $142 74. Re5 Rc1+ 75. Ke2 Rg1) 74. Re5 {[%emt 0:00:28]} Kd3 {[%emt 0:00:45]} 75. Rd5+ {[%emt 0:00:26]} Ke3 {[%emt 0:00:35]} 76. Re5+ {[%emt 0:00:12]} Kd4 {[%emt 0:00:08]} 77. Re1 {[%emt 0:00:24]} Rf2+ {[%emt 0:00:22]} 78. Kg1 {[%emt 0:00:04]} Kd3 {[%emt 0:00:52]} (78... Ra2 $142 79. Kf1 Rf2+ 80. Kg1 Rc2 81. Kf1 Rf2+) 79. Ra1 {[%emt 0:01:17]} Rc2 {[%emt 0:00:30]} 80. Kf1 {[%emt 0:01:24]} Kd2 {[%emt 0:00:16]} 81. Rb1 {[%emt 0:00:11]} Rc1+ {[%emt 0:00:27]} 82. Rxc1 {[%emt 0:00:07]} Kxc1 $15 {[%emt 0:00:02] K3P-KPP. Black mates.} 83. Ke1 {[%emt 0:00:09]} Kc2 {[%emt 0:00:07]} 84. Ke2 {[%emt 0:00:04]} Kc3 {[%emt 0:00:06]} 85. Ke1 {[%emt 0:00:06]} Kd3 {[%emt 0:00:09]} 86. Kf1 {[%emt 0:00:30]} Kd2 {[%emt 0:00:11]} 87. Kg1 {[%emt 0:00:07]} Ke2 {[%emt 0:00:29]} 88. Kh1 {[%emt 0:00:09] [#]} g4 $1 {[%emt 0:00:15][%mdl 576] Promotion} 89. fxg4 {[%emt 0:00:26]} (89. Kg1 gxf3) 89... f3 {[%emt 0:00:54]} 90. gxf3 {[%emt 0:00:42]} Kf2 {[%emt 0:00:06] Weighted Error Value: White=0.70/Black=0.64} ({Stronger than} 90... Kxf3 91. Kg1 Kxg4 92. Kg2 $11) 0-1

[Event "DFMM-LV 2023"]
[Site "Braunfels"]
[Date "2023.06.09"]
[Round "2.18"]
[White "Otikova, Elina"]
[Black "Barpiyeva, Gulsana"]
[Result "1-0"]
[Annotator "TA"]
[ECO "B43"]
[WhiteElo "2047"]
[BlackElo "2023"]
[PlyCount "67"]
[EventDate "2023.06.09"]
[EventType "team-tourn"]
[EventCountry "GER"]
[SourceTitle "playchess.com"]
[Source "ChessBase"]
[SourceQuality "1"]
[TimeControl "40/5400+30:1800+30"]

{[%evp 15,67,17,8,-4,0,-27,0,0,0,0,0,-25,-22,-14,-22,-32,0,0,0,-12,-9,-10,0,0,0,0,0,0,0,0,15,0,52,50,105,100,126,72,85,79,306,88,546,546,525,537,534,522,29990,2104,29991,29992,29992,29993]} 1. e4 {[%emt 0:00:02]} c5 {[%emt 0:00:12]} 2. Nf3 {[%emt 0:00:07]} e6 {[%emt 0:00:09]} 3. d4 {[%emt 0:00:08]} cxd4 {[%emt 0:00:10]} 4. Nxd4 {[%emt 0:00:07]} a6 {[%emt 0:00:11]} 5. Nc3 {[%emt 0:00:15]} Qc7 {[%emt 0:00:12]} 6. Bd3 {[%emt 0:00:09]} Nf6 {[%emt 0:00:36]} 7. O-O {[%emt 0:01:16]} Bc5 {[%emt 0:02:11]} 8. Be3 {[%emt 0:02:57]} d6 {[%emt 0:01:12]} 9. Qe2 {[%emt 0:04:33] B43: Sicilian: Kan Variation: 5 Nc3.} O-O {[%emt 0:02:54]} 10. a4 {[%emt 0:05:47]} b6 {[%emt 0:06:10]} (10... e5 $5 {[%cal Re5d4]} 11. Nf3 Be6 $11) 11. f4 {[%emt 0:08:16] The position is equal.} Nbd7 {[%emt 0:20:01][%cal Bb8d7,Bd7c5,Bc5d3][%mdl 32]} 12. Kh1 {[%emt 0:06:03]} Bb7 {[%emt 0:03:14]} 13. Rae1 {[%emt 0:00:50] [#]} Bb4 $146 {[%emt 0:04:04]} ({Predecessor:} 13... Rfe8 14. Bg1 e5 15. fxe5 Rxe5 16. Qf3 Nf8 17. Nf5 Bxg1 18. Kxg1 Qc5+ 19. Kh1 Re6 {0-1 Kovalev,V (2453)-Gorovets,A (2428) BLR-ch 78th Minsk 2012 (6)}) 14. Bd2 {[%emt 0:00:40][%cal Oc3b5]} Nc5 {[%emt 0:03:57]} 15. e5 {[%emt 0:15:04]} Nxd3 {[%emt 0:03:03]} 16. Qxd3 {[%emt 0:09:04]} Bxc3 {[%emt 0:05:11]} 17. Bxc3 {[%emt 0:10:45]} ({Of course not} 17. Qxc3 Qxc3 18. Bxc3 dxe5 19. fxe5 Ne4 $15) 17... Nd5 {[%emt 0:04:03]} 18. Bd2 {[%emt 0:05:26]} Ne7 {[%emt 0:07:38]} 19. Bb4 {[%emt 0:04:07]} dxe5 {[%emt 0:03:05]} 20. fxe5 {[%emt 0:00:24]} Rfd8 {[%emt 0:06:30][%cal Oe7f5]} 21. Bd6 {[%emt 0:00:58]} Qd7 {[%emt 0:01:21]} 22. Rd1 {[%emt 0:05:54]} Ng6 {[%emt 0:01:55] Black is weak on the dark squares} 23. Qb3 {[%emt 0:02:52]} Nh4 {[%emt 0:10:03]} ({Black should play} 23... b5 $1 $11) 24. Rd2 $36 {[%emt 0:00:36][%mdl 2048] White has good play.} (24. Qxb6 $2 {loses.} Bxg2+ 25. Kg1 Bxf1 26. Rxf1 Qxa4 $19) 24... Rdc8 {[%emt 0:07:28]} (24... Nf5 $14) 25. Qg3 $16 {[%emt 0:04:32]} Ng6 {[%emt 0:02:42]} 26. b3 {[%emt 0:02:22]} ({White should try} 26. Rdf2) 26... Rd8 {[%emt 0:01:36][%cal Of7f6]} 27. h4 {[%emt 0:02:17][%cal Bh2h4,Bh4h5][%mdl 32] Strongly threatening h5. White is much more active.} Rac8 $2 {[%emt 0:02:46]} (27... f5 $16 {was worth a try.}) 28. c4 $2 {[%emt 0:00:39]} (28. h5 $18) 28... f6 $2 {[%emt 0:00:58][%mdl 8192] [#]} 29. h5 $1 $18 {[%emt 0:02:50]} Nxe5 {[%emt 0:00:14]} 30. Bxe5 {[%emt 0:00:28]} fxe5 {[%emt 0:00:03] [#]} 31. Nf5 {[%emt 0:00:58][%mdl 576] Discovered Attack} Qc7 {[%emt 0:01:24][%cal Oe6f5] Threatens to win with ...exf5!} (31... exf5 32. Rxd7) 32. Nh6+ {[%emt 0:00:39]} Kh8 {[%emt 0:00:03]} 33. Rf7 {[%emt 0:01:14][%csl Gf7][%cal Rg3g7]} Bxg2+ {[%emt 0:01:04]} 34. Qxg2 {[%emt 0:00:31] Weighted Error Value: White=0.18 (very precise) /Black=0.58} 1-0

[Event "DFMM-LV 2023"]
[Site "Braunfels"]
[Date "2023.06.09"]
[Round "2.19"]
[White "Lukas, Anne"]
[Black "Ter-Avetisjana, Agnesa Stepania"]
[Result "0-1"]
[Annotator "TA"]
[ECO "A07"]
[WhiteElo "2057"]
[BlackElo "1988"]
[PlyCount "72"]
[EventDate "2023.06.09"]
[EventType "team-tourn"]
[EventCountry "GER"]
[SourceTitle "playchess.com"]
[Source "ChessBase"]
[SourceQuality "1"]
[TimeControl "40/5400+30:1800+30"]

{[%evp 10,71,17,0,-5,0,20,17,22,14,21,18,9,18,15,0,20,29,16,0,0,0,0,0,48,43,45,38,39,0,0,-42,-38,-76,-42,-42,-38,-50,-11,-159,-159,-158,-150,-170,-164,-174,-132,-262,-243,-261,-261,-703,-602,-722,-706,-890,-855,-29969,-29970,-29991,-29992,-29997,-29998,-29999]} 1. Nf3 {[%emt 0:00:01]} d5 {[%emt 0:00:10]} 2. g3 {[%emt 0:00:05]} Nf6 {[%emt 0:00:33]} 3. Bg2 {[%emt 0:00:06]} c6 {[%emt 0:00:17]} 4. O-O {[%emt 0:00:19]} Bf5 {[%emt 0:00:11]} 5. d3 {[%emt 0:00:09]} e6 {[%emt 0:00:08]} 6. Nfd2 {[%emt 0:00:10]} h6 {[%emt 0:00:28] A07: Réti Opening: New York and Capablanca Systems.} 7. e4 {[%emt 0:00:06]} dxe4 {[%emt 0:00:08]} 8. dxe4 {[%emt 0:00:05]} Bh7 {[%emt 0:02:44] The position is equal.} 9. Nc3 {[%emt 0:01:29]} Nbd7 {[%emt 0:03:00]} 10. Kh1 {[%emt 0:00:23]} Be7 {[%emt 0:06:22]} 11. Qe2 {[%emt 0:02:09]} O-O {[%emt 0:03:25]} 12. f4 {[%emt 0:00:36] [#]} Re8 $146 {[%emt 0:01:40]} ({Predecessor:} 12... b5 13. g4 Nb6 14. h4 Nfd7 15. g5 b4 16. Nd1 Nc5 17. Nf2 hxg5 18. hxg5 f6 19. gxf6 Bxf6 {0-1 Sinitsina,A (2228)-Kozlov,G (2374) Titled Tuesday intern op 01st Mar Early blitz 2022 (3)}) 13. g4 {[%emt 0:04:47]} Nf8 {[%emt 0:05:39]} 14. Qf3 {[%emt 0:03:47]} Ng6 {[%emt 0:08:14]} 15. g5 {[%emt 0:07:06]} hxg5 {[%emt 0:04:01]} 16. fxg5 {[%emt 0:03:23]} Ne5 {[%emt 0:00:13]} (16... Nd7 $11 {might be stronger.}) 17. Qg3 $1 $14 {[%emt 0:01:45]} Nfd7 {[%emt 0:00:14]} 18. Nf3 {[%emt 0:00:32]} Qa5 {[%emt 0:15:46]} 19. Bf4 {[%emt 0:03:02][%cal Rf3e5]} Nc4 $36 {[%emt 0:11:35][%mdl 2048] Black has good play.} 20. Bc1 {[%emt 0:20:10]} Bd6 {[%emt 0:09:09]} 21. Qh4 {[%emt 0:02:02]} Nde5 {[%emt 0:09:01] Black has more active pieces.} 22. Nxe5 {[%emt 0:01:44]} Bxe5 {[%emt 0:00:55]} 23. Rf3 {[%emt 0:01:42] Threatens to win with Rh3.} Bg6 $1 {[%emt 0:00:40] White must now prevent ...Rad8.} (23... Bxc3 24. Rh3 Rad8 25. Bf4 (25. bxc3 $2 Rd1+ $19) (25. Qxh7+ Kf8 $16) 25... Nxb2 26. Qxh7+ Kf8 27. Rf1 $18) 24. Ne2 {[%emt 0:01:31] [#]} ({Much weaker is} 24. Rh3 Kf8 25. Qf2 Rad8 $17) (24. Bf1 $1 $11 {remains equal.} Qc5 25. Rb1 (25. Rh3 Kf8 $17)) 24... Rad8 $1 $17 {[%emt 0:04:24] Hoping for ...Rd1+.} (24... Bxb2 $2 25. Bxb2 Nxb2 26. Rh3 $18) 25. Bf4 {[%emt 0:09:33]} Bxe4 {[%emt 0:07:44]} 26. Rh3 {[%emt 0:00:04][%csl Gh3][%cal Rh4h8]} Bxg2+ {[%emt 0:00:11]} 27. Kxg2 {[%emt 0:00:01][%csl Gh3][%cal Rh4h8]} Qd5+ {[%emt 0:02:50]} (27... Bxb2 $2 28. Qh8#) 28. Kf2 {[%emt 0:00:45]} (28. Kg1 $17 {was the only chance.} Kf8 29. Bxe5 Nxe5 30. Qf2 (30. Qh8+ $2 Ke7 $19)) 28... Kf8 $19 {[%emt 0:01:44]} (28... Bxb2 $2 29. Qh8#) 29. Bxe5 {[%emt 0:05:49]} Nxe5 {[%emt 0:00:01]} 30. Qh8+ $2 {[%emt 0:02:19]} (30. Qb4+ Kg8 31. Re1) 30... Ke7 {[%emt 0:00:01]} 31. Qxg7 {[%emt 0:00:08]} Ng4+ {[%emt 0:00:41]} ({Not} 31... Qc5+ 32. Ke1 $17) 32. Kg3 {[%emt 0:04:24]} Rg8 {[%emt 0:00:59][%cal Be8g8,Bg8g5,Bg5f5][%mdl 96] [#] Skewer, Deflection} 33. Qc3 {[%emt 0:04:31]} Rxg5 {[%emt 0:00:59] Black mates.} 34. Rg1 {[%emt 0:10:42]} Nf6+ {[%emt 0:00:26]} 35. Kf4 {[%emt 0:00:24]} Rf5+ {[%emt 0:00:25]} 36. Ke3 {[%emt 0:00:08]} Qe4# {[%emt 0:00:08] A cool game by Ter-Avetisjana.   Weighted Error Value: White=0.70/Black=0.06 (flawless)} 0-1

[Event "DFMM-LV 2023"]
[Site "Braunfels"]
[Date "2023.06.09"]
[Round "2.21"]
[White "Frank, Michelle Viviane"]
[Black "Safonova, Valeria"]
[Result "1/2-1/2"]
[Annotator "NA RC COMBH"]
[ECO "B90"]
[WhiteElo "1857"]
[BlackElo "1753"]
[PlyCount "94"]
[EventDate "2023.06.09"]
[EventType "team-tourn"]
[EventCountry "GER"]
[SourceTitle "playchess.com"]
[Source "ChessBase"]
[SourceQuality "1"]
[TimeControl "40/5400+30:1800+30"]

1. e4 {[%emt 0:00:07]} c5 {[%emt 0:00:04]} 2. Nc3 {[%emt 0:00:05]} d6 {[%emt 0:00:35]} 3. Nge2 {[%emt 0:00:54]} a6 {[%emt 0:01:04]} 4. d4 {[%emt 0:04:16]} cxd4 {[%emt 0:01:31]} 5. Nxd4 {[%emt 0:00:04]} Nf6 {[%emt 0:00:47]} 6. h3 {[%emt 0:00:08]} b5 {[%emt 0:03:14]} 7. Bd3 {[%emt 0:06:46]} Bb7 {[%emt 0:03:56]} 8. O-O {[%emt 0:08:56]} b4 {[%emt 0:09:47]} 9. Nd5 {[%emt 0:00:14]} Nxd5 {[%emt 0:02:34]} 10. exd5 {[%emt 0:00:07]} Bxd5 {[%emt 0:09:18]} 11. Qh5 {[%emt 0:00:29]} e5 {[%emt 0:17:03]} 12. Re1 {[%emt 1:14:24]} Be7 {[%emt 0:11:28]} 13. Nf5 {[%emt 0:00:00]} Bf6 {[%emt 0:05:06]} 14. Ng3 {[%emt 0:00:00]} g6 {[%emt 0:03:40]} 15. Qh6 {[%emt 0:00:00]} Qe7 {[%emt 0:00:20]} 16. Ne4 {[%emt 0:00:00]} Bxe4 {[%emt 0:07:34]} 17. Bxe4 {[%emt 0:00:00]} Ra7 {[%emt 0:00:02]} 18. Be3 {[%emt 0:00:00]} Rd7 {[%emt 0:00:02]} 19. Bd5 {[%emt 0:00:00]} Qf8 {[%emt 0:01:48]} 20. Qxf8+ {[%emt 0:00:00]} Kxf8 {[%emt 0:00:02]} 21. Bd2 {[%emt 0:00:00]} a5 {[%emt 0:02:10]} 22. a3 {[%emt 0:00:00]} Na6 {[%emt 0:06:59]} 23. Bc4 {[%emt 0:00:00]} Nc5 {[%emt 0:00:03]} 24. axb4 {[%emt 0:00:00]} axb4 {[%emt 0:00:02]} 25. Bxb4 {[%emt 0:00:00]} Kg7 {[%emt 0:01:57]} 26. Rad1 {[%emt 0:00:00]} Rhd8 {[%emt 0:03:22]} 27. Bb5 {[%emt 0:00:00]} Rb7 {[%emt 0:00:13]} 28. c4 {[%emt 0:00:00]} Be7 {[%emt 0:02:35]} 29. Bxc5 {[%emt 0:00:00]} dxc5 {[%emt 0:00:12]} 30. Rxd8 {[%emt 0:00:00]} Bxd8 {[%emt 0:00:07]} 31. Rxe5 {[%emt 0:00:00]} Bf6 {[%emt 0:00:16]} 32. Rxc5 {[%emt 0:00:00]} Bxb2 {[%emt 0:00:07]} 33. Rd5 {[%emt 0:00:00]} Re7 {[%emt 0:01:04]} 34. Kf1 {[%emt 0:00:00]} Bc3 {[%emt 0:00:34]} 35. Rd1 {[%emt 0:00:00]} Bb4 {[%emt 0:00:10]} 36. g3 {[%emt 0:00:00]} Re5 {[%emt 0:01:02]} 37. Kg2 {[%emt 0:00:00]} Re2 {[%emt 0:00:28]} 38. Kf3 {[%emt 0:00:00]} Rc2 {[%emt 0:00:23]} 39. Rf1 {[%emt 0:00:00]} Bc5 {[%emt 0:00:17]} 40. Kg2 {[%emt 0:00:00]} f5 {[%emt 0:04:16]} 41. g4 {[%emt 0:00:00]} Kf6 {[%emt 0:30:30]} 42. gxf5 {[%emt 0:00:00]} Kxf5 {[%emt 0:00:12]} 43. Kg3 {[%emt 0:00:00]} g5 {[%emt 0:00:00]} 44. Bd7+ {[%emt 0:00:00]} Kf6 {[%emt 0:00:00]} 45. Bb5 {[%emt 0:00:00]} Kf5 {[%emt 0:00:00]} 46. Bd7+ {[%emt 0:00:00]} Kf6 {[%emt 0:00:00]} 47. Bb5 {[%emt 0:00:00]} Kf5 {[%emt 0:07:06]} 1/2-1/2